bitfinex-derivatives/quotes_BTCF0:USTF0_20260107
["timestamp","ask_amount","ask_price","bid_price","bid_amount"]
[1767799718035,0.14774053,91230.0,91192.0,0.09328]
[1767799718036,0.09328,91224.0,91204.0,0.09128062]
[1767799718241,0.0911595,91233.0,91204.0,0.09128062]
[1767799718242,0.09328,91225.0,91208.0,0.10225362]
[1767799718447,0.010971,91228.0,91208.0,0.10225362]
[1767799718448,0.09328,91228.0,91213.0,0.09128062]
[1767799718637,0.09705486,91257.0,91209.0,0.02647958]
[1767799718638,0.09328,91236.0,91223.0,0.09128062]
[1767799718838,0.09328,91243.0,91223.0,0.09128062]
[1767799719348,0.09328,91243.0,91228.0,0.09128062]
[1767799719652,0.09328,91243.0,91222.0,0.01301235]
[1767799719653,0.09328,91258.0,91235.0,0.09128062]
[1767799719951,0.010968,91251.0,91235.0,0.09128062]
[1767799720148,0.09328,91258.0,91235.0,0.09128062]
[1767799720337,0.09328,91258.0,91235.0,0.07328062]
[1767799720537,0.010968,91255.0,91231.0,0.01097]
[1767799721043,0.010968,91252.0,91231.0,0.01097]
[1767799721836,0.010967,91256.0,91225.0,0.11975958]
[1767799722038,0.1844395,91258.0,91226.0,0.02647958]
[1767799722349,0.010969,91242.0,91227.0,0.09328]
[1767799722556,0.010969,91242.0,91228.0,0.09328]
[1767799722844,0.0911595,91254.0,91228.0,0.09328]
[1767799723044,0.0911595,91248.0,91224.0,0.18456062]
[1767799723250,0.01097,91238.0,91224.0,0.18456062]
[1767799723751,0.01097,91238.0,91224.0,0.09128062]
[1767799724138,0.010969,91243.0,91225.0,0.010971]
[1767799724339,0.010969,91241.0,91224.0,0.09128062]
[1767799724941,0.010969,91241.0,91223.0,0.09328]
[1767799725141,0.010971,91229.0,91212.0,0.010973]
[1767799725341,0.010971,91223.0,91207.0,0.09128062]
[1767799725549,0.010971,91226.0,91208.0,0.010973]
[1767799725748,0.0911595,91224.0,91199.0,0.09128062]
[1767799726053,0.1844395,91224.0,91199.0,0.10225462]
[1767799726355,0.1844395,91224.0,91198.0,0.09328]
[1767799726356,0.15189386,91255.0,91198.0,0.09328]
[1767799726357,0.09705486,91254.0,91214.0,0.14774053]
[1767799726658,0.01259879,91299.0,91261.0,0.02647958]
[1767799726835,0.09328,91306.0,91265.0,0.02647958]
[1767799727046,0.09328,91309.0,91279.0,0.010964]
[1767799727239,0.10375829,91321.0,91287.0,0.09128062]
[1767799727240,0.09328,91311.0,91287.0,0.09128062]
[1767799727443,0.09328,91315.0,91288.0,0.09128062]
[1767799727649,0.10375829,91321.0,91292.0,0.09128062]
[1767799727650,0.0911595,91321.0,91292.0,0.09128062]
[1767799727955,0.010959,91324.0,91301.0,0.09128062]
[1767799728138,0.0911595,91330.0,91301.0,0.09128062]
[1767799728338,0.0911595,91330.0,91300.0,0.02647958]
[1767799728339,0.11825413,91317.0,91291.0,0.010963]
[1767799728543,0.11825413,91317.0,91300.0,0.010962]
[1767799728747,0.0911595,91317.0,91295.0,0.010963]
[1767799729057,0.02560205,91325.0,91293.0,0.010963]
[1767799729058,0.09328,91323.0,91293.0,0.010963]
[1767799729243,0.09328,91323.0,91293.0,0.10224362]
[1767799729438,0.09328,91323.0,91293.0,0.09128062]
[1767799729439,0.0911595,91322.0,91293.0,0.09128062]
[1767799729646,0.09328,91323.0,91279.0,0.09328]
[1767799729647,0.11639934,91302.0,91279.0,0.09328]
[1767799729848,0.11639934,91302.0,91250.0,0.010968]
[1767799729849,0.0911595,91286.0,91259.0,0.09128062]
[1767799730148,0.09328,91289.0,91264.0,0.09128062]
[1767799730455,0.09324,91289.0,91265.0,0.09128062]
[1767799730653,0.09324,91289.0,91267.0,0.010966]
[1767799730950,0.09324,91289.0,91262.0,0.010966]
[1767799731154,0.09324,91289.0,91262.0,0.10224662]
[1767799731452,0.09324,91289.0,91261.0,0.09324]
[1767799731453,0.09324,91289.0,91267.0,0.10224662]
[1767799731843,0.11965321,91304.0,91278.0,0.010965]
[1767799732155,0.09324,91303.0,91281.0,0.09128062]
[1767799732543,0.0911595,91313.0,91284.0,0.09128062]
[1767799732847,0.09324,91312.0,91286.0,0.09128062]
[1767799733245,0.14774053,91330.0,91283.0,0.11971958]
[1767799733246,0.11965321,91332.0,91302.0,0.010962]
[1767799733447,0.09324,91326.0,91302.0,0.10224262]
[1767799733646,0.09324,91326.0,91310.0,0.09128062]
[1767799733847,0.09324,91326.0,91301.0,0.09128062]
[1767799734055,0.09324,91326.0,91298.0,0.010962]
[1767799734056,0.0911595,91325.0,91302.0,0.09324]
[1767799734355,0.1843995,91326.0,91302.0,0.09324]
[1767799734650,0.0911595,91325.0,91302.0,0.09324]
[1767799734853,0.09324,91339.0,91309.0,0.1177602]
[1767799735056,0.02849371,91356.0,91325.0,0.09128062]
[1767799735375,0.09324,91358.0,91330.0,0.09128062]
[1767799735556,0.09324,91358.0,91334.0,0.010958]
[1767799735864,0.0911595,91357.0,91331.0,0.09324]
[1767799736159,0.0911595,91355.0,91331.0,0.0910477]
[1767799736451,0.010956,91354.0,91331.0,0.0910477]
[1767799736651,0.1021145,91355.0,91331.0,0.0910477]
[1767799737049,0.0911595,91355.0,91331.0,0.0910477]
[1767799737350,0.0911595,91355.0,91327.0,0.010959]
[1767799737543,0.010956,91351.0,91328.0,0.09324]
[1767799737746,0.010956,91351.0,91329.0,0.09324]
[1767799738156,0.0911595,91355.0,91329.0,0.09324]
[1767799738157,0.010957,91346.0,91329.0,0.09324]
[1767799738354,0.010957,91346.0,91310.0,0.47552]
[1767799738355,0.010957,91339.0,91319.0,0.0932]
[1767799738656,0.0932,91348.0,91320.0,0.09128062]
[1767799738842,0.010956,91347.0,91320.0,0.09128062]
[1767799739046,0.0932,91348.0,91321.0,0.01096]
[1767799739257,0.010956,91347.0,91321.0,0.01096]
[1767799739455,0.104156,91348.0,91320.0,0.09128062]
[1767799739660,0.0932,91348.0,91323.0,0.09128062]
[1767799739853,0.0932,91348.0,91328.0,0.010959]
[1767799740557,0.0932,91348.0,91322.0,0.0932]
[1767799740558,0.0911595,91347.0,91322.0,0.0932]
[1767799740753,0.010958,91333.0,91315.0,0.0932]
[1767799740955,0.10379578,91333.0,91301.0,0.0915242]
[1767799741257,0.10379578,91333.0,91305.0,0.0915242]
[1767799741258,0.09283778,91333.0,91305.0,0.0915242]
[1767799741452,0.3187,91363.0,91319.0,0.12326157]
[1767799741453,0.010957,91344.0,91319.0,0.12326157]
[1767799741659,0.0932,91347.0,91324.0,0.09352547]
[1767799741850,0.0932,91352.0,91326.0,0.09352547]
[1767799742056,0.0932,91352.0,91341.0,0.010957]
[1767799742359,0.0932,91352.0,91330.0,0.09352547]
[1767799742360,0.0932,91352.0,91339.0,0.010957]
[1767799742555,0.0932,91360.0,91335.0,0.09048247]
[1767799742747,0.0932,91360.0,91338.0,0.010957]
[1767799743453,0.010955,91355.0,91335.0,0.09048247]
[1767799743859,0.010955,91359.0,91335.0,0.09048247]
[1767799744158,0.0932,91360.0,91335.0,0.08829089]
[1767799744365,0.0932,91360.0,91339.0,0.010957]
[1767799744668,0.00308,91369.0,91336.0,0.0310214]
[1767799744868,0.010949,91408.0,91332.0,0.0932]
[1767799744869,0.010951,91394.0,91361.0,0.010955]
[1767799745058,0.010951,91394.0,91342.0,0.010957]
[1767799745059,0.09616578,91394.0,91367.0,0.010954]
[1767799745356,0.09616578,91394.0,91369.0,0.010954]
[1767799745661,0.0932,91395.0,91365.0,0.010954]
[1767799745862,0.010951,91394.0,91365.0,0.010954]
[1767799746058,0.010951,91394.0,91361.0,0.10448047]
[1767799746254,0.010951,91394.0,91364.0,0.010954]
[1767799746453,0.010951,91394.0,91365.0,0.09352547]
[1767799746655,0.09616578,91394.0,91365.0,0.09352547]
[1767799746859,0.010952,91380.0,91356.0,0.09352547]
[1767799747069,0.09616578,91384.0,91357.0,0.104115]
[1767799747257,0.09616578,91384.0,91363.0,0.010954]
[1767799747782,0.09316,91385.0,91363.0,0.10447947]
[1767799748266,0.010951,91393.0,91367.0,0.09352547]
[1767799748463,0.010951,91393.0,91366.0,0.0419754]
[1767799748464,0.010951,91393.0,91369.0,0.09352547]
[1767799749456,0.01095,91397.0,91369.0,0.09352547]
[1767799749765,0.01095,91397.0,91371.0,0.10447847]
[1767799750163,0.01095,91397.0,91347.0,0.010956]
[1767799750164,0.010952,91388.0,91364.0,0.010954]
[1767799750362,0.10711678,91392.0,91366.0,0.10447947]
[1767799750565,0.09316,91400.0,91369.0,0.09352547]
[1767799750762,0.10411,91400.0,91372.0,0.09352547]
[1767799751066,0.10411,91400.0,91375.0,0.010953]
[1767799751262,0.10411,91400.0,91365.0,0.09316]
[1767799751263,0.09316,91407.0,91382.0,0.12454687]
[1767799751464,0.09316,91407.0,91386.0,0.10447747]
[1767799751863,0.09316,91407.0,91377.0,0.09352547]
[1767799752063,0.09616578,91405.0,91377.0,0.09352547]
[1767799752258,0.09316,91410.0,91391.0,0.010951]
[1767799752457,0.09316,91410.0,91382.0,0.0310214]
[1767799752660,0.09316,91410.0,91385.0,0.09352547]
[1767799752861,0.09316,91413.0,91400.0,0.01095]
[1767799753169,0.09316,91416.0,91390.0,0.09352547]
[1767799753361,0.20027378,91416.0,91390.0,0.09352547]
[1767799753561,0.18932578,91416.0,91394.0,0.010951]
[1767799753761,0.18932578,91416.0,91390.0,0.10447647]
[1767799753962,0.010948,91415.0,91390.0,0.10447647]
[1767799754265,0.01095,91401.0,91376.0,0.010953]
[1767799754471,0.09616578,91404.0,91377.0,0.09316]
[1767799754768,0.09616578,91404.0,91380.0,0.010952]
[1767799755272,0.010946,91435.0,91405.0,0.09352547]
[1767799755459,0.03088741,91425.0,91399.0,0.09316]
[1767799755659,0.03088741,91425.0,91397.0,0.09352547]
[1767799755855,0.010948,91421.0,91397.0,0.09352547]
[1767799756060,0.03088741,91425.0,91396.0,0.09312]
[1767799756267,0.03088741,91425.0,91378.0,0.05992317]
[1767799756268,0.010949,91410.0,91384.0,0.010952]
[1767799756572,0.010949,91408.0,91384.0,0.010952]
[1767799756779,0.03088741,91407.0,91385.0,0.010952]
[1767799757076,0.03088741,91407.0,91387.0,0.010952]
[1767799757273,0.01095,91402.0,91382.0,0.09312]
[1767799757472,0.01095,91402.0,91337.0,0.07809914]
[1767799757473,0.12485412,91395.0,91372.0,0.09312]
[1767799757664,0.09312,91398.0,91378.0,0.010953]
[1767799757869,0.09312,91398.0,91371.0,0.010953]
[1767799758074,0.09312,91398.0,91371.0,0.104073]
[1767799758276,0.09312,91398.0,91373.0,0.010953]
[1767799758664,0.09312,91398.0,91371.0,0.09312]
[1767799758867,0.02827394,91397.0,91371.0,0.09312]
[1767799759068,0.02827394,91397.0,91368.0,0.09352547]
[1767799759378,0.02827394,91397.0,91370.0,0.09352547]
[1767799759681,0.010951,91393.0,91371.0,0.10447847]
[1767799759879,0.02827394,91397.0,91371.0,0.10447847]
[1767799760179,0.010952,91387.0,91368.0,0.010954]
[1767799760381,0.010951,91390.0,91371.0,0.010954]
[1767799760774,0.010952,91387.0,91369.0,0.010954]
[1767799760976,0.010951,91390.0,91371.0,0.010953]
[1767799761174,0.010952,91388.0,91371.0,0.010953]
[1767799761376,0.010952,91388.0,91368.0,0.010954]
[1767799761577,0.010952,91386.0,91368.0,0.010954]
[1767799761966,0.010953,91377.0,91361.0,0.09352547]
[1767799762282,0.010951,91390.0,91361.0,0.010955]
[1767799762283,0.03760822,91378.0,91361.0,0.010955]
[1767799762578,0.4,91390.0,91345.0,0.104077]
[1767799762579,0.010953,91372.0,91354.0,0.010955]
[1767799762778,0.09929739,91376.0,91360.0,0.00129067]
[1767799762779,0.09312,91376.0,91360.0,0.00129067]
[1767799762975,0.104073,91376.0,91360.0,0.00129067]
[1767799763186,0.104073,91376.0,91360.0,0.09481614]
[1767799763378,0.09312,91376.0,91360.0,0.00129067]
[1767799763785,0.09312,91390.0,91361.0,0.09352547]
[1767799763979,0.09312,91390.0,91374.0,0.010953]
[1767799764278,0.09312,91390.0,91371.0,0.09352547]
[1767799764475,0.010951,91389.0,91371.0,0.09352547]
[1767799764985,0.010952,91385.0,91371.0,0.07552547]
[1767799765368,0.010951,91389.0,91371.0,0.08647847]
[1767799765575,0.09312,91390.0,91371.0,0.08647847]
[1767799765777,0.09312,91390.0,91371.0,0.07552547]
[1767799765984,0.010951,91389.0,91371.0,0.07552547]
[1767799766190,0.010952,91386.0,91371.0,0.07552547]
[1767799766369,0.02402648,91389.0,91362.0,0.010955]
[1767799766573,0.010953,91372.0,91360.0,0.00129067]
[1767799766877,0.11330291,91380.0,91360.0,0.00129067]
[1767799767085,0.010954,91368.0,91360.0,6.7e-07]
[1767799767871,0.010954,91365.0,91360.0,6.7e-07]
[1767799768071,0.010955,91362.0,91344.0,0.010957]
[1767799768276,0.11742116,91365.0,91340.0,0.09352547]
[1767799768471,0.11294384,91363.0,91339.0,0.010957]
[1767799768677,0.11294384,91363.0,91334.0,0.09312]
[1767799768877,0.11294384,91363.0,91336.0,0.010958]
[1767799769180,0.010955,91357.0,91338.0,0.09352547]
[1767799769587,0.010956,91355.0,91338.0,0.09352547]
[1767799770080,0.02344626,91362.0,91338.0,0.09352547]
[1767799770284,0.010954,91363.0,91344.0,0.010957]
[1767799770480,0.010954,91366.0,91348.0,0.09352547]
[1767799770694,0.10602824,91365.0,91336.0,0.09352547]
[1767799770887,0.10602824,91361.0,91339.0,0.010957]
[1767799771187,0.09312,91364.0,91337.0,0.09312]
[1767799771188,0.010955,91360.0,91343.0,0.010957]
[1767799771376,0.010955,91361.0,91344.0,0.010957]
[1767799771579,0.010955,91361.0,91345.0,0.09352547]
[1767799772079,0.010955,91362.0,91343.0,0.010957]
[1767799772275,0.02067244,91370.0,91344.0,0.010957]
[1767799772470,0.09312,91372.0,91343.0,0.09312]
[1767799772471,0.10543573,91369.0,91343.0,0.09312]
[1767799772874,0.10543573,91369.0,91344.0,0.010957]
[1767799773075,0.010955,91358.0,91343.0,0.09312]
[1767799773698,0.02037546,91365.0,91334.0,0.09435394]
[1767799773878,0.02037546,91365.0,91333.0,0.02916846]
[1767799773879,0.02037546,91365.0,91336.0,0.09435394]
[1767799774078,0.010956,91355.0,91337.0,0.10531194]
[1767799774280,0.010956,91353.0,91337.0,0.09435394]
[1767799775384,0.09312,91361.0,91337.0,0.09435394]
[1767799775587,0.010956,91352.0,91337.0,0.09435394]
[1767799777090,0.010956,91350.0,91337.0,0.09435394]
[1767799777393,0.010955,91356.0,91337.0,0.09435394]
[1767799777593,0.010956,91354.0,91337.0,0.09435394]
[1767799778984,0.09312,91361.0,91337.0,0.09435394]
[1767799779880,0.010955,91359.0,91339.0,0.09435394]
[1767799780091,0.010955,91357.0,91343.0,0.010957]
[1767799780289,0.09312,91361.0,91343.0,0.010957]
[1767799781190,0.010955,91358.0,91343.0,0.010957]
[1767799781788,0.09312,91361.0,91346.0,0.09435394]
[1767799781789,0.104075,91361.0,91346.0,0.09435394]
[1767799782006,0.104075,91361.0,91347.0,0.010956]
[1767799782386,0.104075,91361.0,91346.0,0.09435394]
[1767799782593,0.010955,91360.0,91346.0,0.09435394]
[1767799782982,0.09312,91361.0,91347.0,0.010956]
[1767799783293,0.09312,91361.0,91349.0,0.010956]
[1767799784193,0.09312,91361.0,91346.0,0.010956]
[1767799784691,0.09312,91361.0,91348.0,0.010956]
[1767799785287,0.09312,91361.0,91341.0,0.010957]
[1767799785491,0.09312,91361.0,91339.0,0.02916846]
[1767799785492,0.09312,91361.0,91342.0,0.09435394]
[1767799785682,0.010956,91352.0,91336.0,0.10531194]
[1767799785882,0.010956,91355.0,91339.0,0.10531094]
[1767799786289,0.09312,91361.0,91332.0,0.04012646]
[1767799786290,0.010955,91360.0,91332.0,0.04012646]
[1767799786490,0.010956,91352.0,91333.0,0.09316]
[1767799786696,0.01605239,91357.0,91334.0,0.09316]
[1767799786993,0.010956,91350.0,91335.0,0.010958]
[1767799787194,0.010956,91353.0,91337.0,0.010958]
[1767799787391,0.010956,91351.0,91336.0,0.010958]
[1767799787591,0.010956,91349.0,91336.0,0.010958]
[1767799787890,0.01605239,91357.0,91318.0,0.01103991]
[1767799787891,0.0995816,91344.0,91320.0,0.09615961]
[1767799788092,0.10855087,91343.0,91322.0,0.010959]
[1767799788290,0.010958,91336.0,91322.0,0.010959]
[1767799788495,0.010958,91336.0,91320.0,0.09615961]
[1767799788794,0.010958,91336.0,91321.0,0.10711861]
[1767799789301,0.010958,91336.0,91321.0,0.09615961]
[1767799789488,0.10855087,91343.0,91321.0,0.09615961]
[1767799789888,0.010958,91333.0,91318.0,0.01103991]
[1767799790598,0.010958,91335.0,91320.0,0.01096]
[1767799790799,0.09316,91343.0,91324.0,0.010959]
[1767799790800,0.010957,91339.0,91324.0,0.010959]
[1767799790989,0.010958,91337.0,91322.0,0.10711861]
[1767799791300,0.09316,91338.0,91324.0,0.10711861]
[1767799791489,0.104118,91338.0,91324.0,0.09615961]
[1767799791691,0.010958,91336.0,91324.0,0.09615961]
[1767799791889,0.09316,91338.0,91318.0,0.09623952]
[1767799792301,0.010958,91333.0,91318.0,0.09623952]
[1767799792498,0.010959,91329.0,91318.0,0.09623952]
[1767799792700,0.010959,91329.0,91314.0,0.01096]
[1767799792998,0.010959,91329.0,91313.0,0.09316]
[1767799792999,0.010958,91332.0,91316.0,0.01096]
[1767799793696,8.297e-05,91331.0,91316.0,0.01096]
[1767799793994,8.297e-05,91331.0,91315.0,0.01096]
[1767799794206,8.297e-05,91331.0,91317.0,0.01096]
[1767799794596,8.297e-05,91331.0,91319.0,0.01096]
[1767799794895,8.297e-05,91331.0,91319.0,0.09615961]
[1767799795399,0.01104097,91331.0,91319.0,0.09615961]
[1767799795790,8.297e-05,91331.0,91319.0,0.09615961]
[1767799795993,0.010954,91366.0,91336.0,0.09615961]
[1767799796194,0.09316,91366.0,91340.0,0.09615961]
[1767799796395,0.104114,91366.0,91346.0,0.09615961]
[1767799796702,0.104114,91366.0,91350.0,0.10711561]
[1767799796905,0.010955,91362.0,91350.0,0.07115961]
[1767799797398,0.09316,91366.0,91350.0,0.07115961]
[1767799797590,0.010954,91364.0,91335.0,0.0278318]
[1767799797888,0.010954,91364.0,91308.0,0.07809914]
[1767799797889,0.010956,91348.0,91334.0,0.09316]
[1767799798096,0.010956,91353.0,91332.0,0.09316]
[1767799798293,0.010956,91351.0,91336.0,0.010958]
[1767799798698,0.09316,91354.0,91332.0,0.010958]
[1767799798887,0.09316,91354.0,91330.0,0.09615961]
[1767799799204,0.010956,91352.0,91330.0,0.09615961]
[1767799799394,0.09316,91354.0,91330.0,0.09615961]
[1767799799594,0.09316,91354.0,91330.0,0.10711761]
[1767799799894,0.09316,91354.0,91330.0,0.09615961]
[1767799800096,0.010957,91345.0,91331.0,0.010958]
[1767799800296,0.010957,91345.0,91330.0,0.09615961]
[1767799800297,0.010957,91341.0,91330.0,0.09615961]
[1767799800706,0.010958,91335.0,91323.0,0.1209918]
[1767799800901,0.13092023,91360.0,91319.0,0.01096]
[1767799800902,0.010958,91333.0,91324.0,0.09615961]
[1767799801099,0.09316,91343.0,91327.0,0.09615961]
[1767799801292,0.4,91359.0,91318.0,0.09316]
[1767799801293,0.09316,91354.0,91343.0,0.09615961]
[1767799801492,0.09316,91356.0,91341.0,0.09615961]
[1767799801687,0.010954,91364.0,91347.0,0.09210654]
[1767799801892,0.09316,91363.0,91347.0,0.09210654]
[1767799802094,0.09316,91362.0,91347.0,0.09210654]
[1767799802300,0.010955,91360.0,91333.0,0.09210654]
[1767799802601,0.010957,91346.0,91334.0,0.09210654]
[1767799802794,0.02822665,91351.0,91327.0,0.09210654]
[1767799802990,0.010957,91346.0,91327.0,0.09210654]
[1767799803194,0.010956,91348.0,91314.0,0.04069652]
[1767799803195,0.010958,91331.0,91314.0,0.04069652]
[1767799803499,0.13092023,91340.0,91307.0,0.010961]
[1767799803500,0.010958,91337.0,91307.0,0.010961]
[1767799803703,0.010961,91311.0,91298.0,0.09316]
[1767799803889,0.13092023,91330.0,91299.0,0.010962]
[1767799803890,0.01096,91315.0,91299.0,0.010962]
[1767799804199,0.13092023,91320.0,91289.0,0.03192738]
[1767799804402,0.12470168,91324.0,91294.0,0.02973652]
[1767799804403,0.0959573,91324.0,91294.0,0.02973652]
[1767799804599,0.0959573,91320.0,91289.0,0.00219086]
[1767799804793,0.03103365,91322.0,91291.0,0.02973652]
[1767799804794,0.010961,91310.0,91291.0,0.02973652]
[1767799805003,0.09316,91323.0,91291.0,0.02973652]
[1767799805194,0.0959573,91316.0,91289.0,0.00219086]
[1767799805393,0.0959573,91316.0,91285.0,0.09285086]
[1767799805394,0.010962,91301.0,91285.0,0.09285086]
[1767799806000,0.09316,91309.0,91285.0,0.09285086]
[1767799806300,0.09316,91308.0,91293.0,0.09732849]
[1767799806504,0.09316,91309.0,91293.0,0.09732849]
[1767799807408,0.10548495,91302.0,91275.0,0.09732849]
[1767799807597,0.010963,91290.0,91273.0,0.010965]
[1767799807905,0.010962,91298.0,91286.0,0.09732849]
[1767799808226,0.010963,91294.0,91278.0,0.09732849]
[1767799808414,0.09316,91302.0,91276.0,0.010965]
[1767799808415,0.010963,91297.0,91276.0,0.010965]
[1767799808704,0.010962,91298.0,91280.0,0.010964]
[1767799809110,0.09316,91302.0,91275.0,0.10829349]
[1767799809295,0.010963,91297.0,91277.0,0.010965]
[1767799809491,0.010963,91290.0,91275.0,0.09732849]
[1767799809704,0.09316,91302.0,91275.0,0.09732849]
[1767799809705,0.010963,91291.0,91275.0,0.09732849]
[1767799810099,0.104123,91291.0,91271.0,0.104125]
[1767799810403,0.09316,91302.0,91287.0,0.09732849]
[1767799810601,0.03015864,91317.0,91290.0,0.09732849]
[1767799810805,0.010962,91304.0,91283.0,0.010964]
[1767799811002,0.010962,91304.0,91283.0,0.10829249]
[1767799811196,0.010962,91301.0,91283.0,0.09732849]
[1767799811608,0.010962,91298.0,91280.0,0.19048849]
[1767799811907,0.010962,91300.0,91281.0,0.09732849]
[1767799812209,0.13092023,91320.0,91280.0,0.09316]
[1767799812210,0.09452295,91316.0,91288.0,0.09732849]
[1767799812394,0.0932,91315.0,91292.0,0.09732849]
[1767799812599,0.010962,91304.0,91292.0,0.09732849]
[1767799813005,0.0932,91314.0,91283.0,0.02978015]
[1767799813006,0.010962,91302.0,91283.0,0.12710864]
[1767799813201,0.010962,91302.0,91285.0,0.09732849]
[1767799814400,0.09452295,91313.0,91286.0,0.10829249]
[1767799814600,0.0932,91312.0,91286.0,0.10829249]
[1767799814902,0.010962,91304.0,91286.0,0.10829249]
[1767799815199,0.09452295,91322.0,91291.0,0.02978015]
[1767799815408,0.09452295,91322.0,91290.0,0.09732849]
[1767799815409,0.0932,91320.0,91301.0,0.09732849]
[1767799815710,0.0932,91319.0,91292.0,0.09732849]
[1767799815904,0.0932,91318.0,91292.0,0.09732849]
[1767799816104,0.09452295,91317.0,91292.0,0.09732849]
[1767799816410,0.010961,91311.0,91292.0,0.09732849]
[1767799816706,0.010963,91290.0,91276.0,0.09732849]
[1767799816905,0.09452295,91303.0,91276.0,0.09732849]
[1767799816906,0.0932,91297.0,91276.0,0.09732849]
[1767799817115,0.13092023,91310.0,91272.0,0.0932]
[1767799817116,0.010961,91308.0,91285.0,0.09732849]
[1767799817418,0.010961,91306.0,91286.0,0.010964]
[1767799817604,0.010962,91298.0,91285.0,0.09732849]
[1767799817805,0.0932,91307.0,91275.0,0.09732849]
[1767799818114,0.0932,91307.0,91282.0,0.010964]
[1767799818309,0.010962,91298.0,91282.0,0.010964]
[1767799818704,0.010963,91295.0,91279.0,0.10829349]
[1767799818902,0.0932,91295.0,91271.0,0.12710864]
[1767799819113,0.010963,91291.0,91275.0,0.010965]
[1767799819407,0.0932,91295.0,91284.0,0.09732849]
[1767799819808,0.010963,91293.0,91276.0,0.09732849]
[1767799820203,0.010964,91288.0,91276.0,0.09732849]
[1767799820401,0.010964,91285.0,91269.0,0.01106869]
[1767799820609,0.0932,91295.0,91276.0,0.010965]
[1767799820610,0.010963,91293.0,91276.0,0.010965]
[1767799820807,0.010963,91293.0,91276.0,0.10829349]
[1767799821115,0.0932,91295.0,91276.0,0.09732849]
[1767799821319,0.0932,91295.0,91278.0,0.09732849]
[1767799821614,0.0932,91295.0,91278.0,0.12710864]
[1767799821824,0.010963,91289.0,91279.0,0.09732849]
[1767799822109,0.0932,91292.0,91271.0,0.02978015]
[1767799822317,0.0932,91292.0,91275.0,0.010965]
[1767799822519,0.0932,91292.0,91278.0,0.02978015]
[1767799822705,0.0932,91292.0,91273.0,0.010965]
[1767799823223,0.0932,91292.0,91277.0,0.010965]
[1767799823418,0.104163,91292.0,91273.0,0.04074515]
[1767799823818,0.0932,91292.0,91273.0,0.02978015]
[1767799824312,0.0932,91292.0,91269.0,0.19063118]
[1767799825016,0.18772295,91292.0,91269.0,0.19063118]
[1767799825218,0.010964,91286.0,91269.0,0.19063118]
[1767799825608,0.010965,91277.0,91269.0,0.00010269]
[1767799825915,0.010965,91277.0,91262.0,0.0932]
[1767799826106,0.010965,91277.0,91261.0,0.010967]
[1767799826307,0.010965,91277.0,91259.0,0.02978015]
[1767799826308,0.010964,91284.0,91263.0,0.09732849]
[1767799826507,0.09452295,91289.0,91263.0,0.09732849]
[1767799826712,0.00011283,91288.0,91263.0,0.09732849]
[1767799826911,0.00011283,91288.0,91257.0,0.010967]
[1767799826912,0.10548695,91285.0,91257.0,0.010967]
[1767799827112,0.010965,91276.0,91257.0,0.12710864]
[1767799827313,0.00011283,91275.0,91261.0,0.010967]
[1767799827516,0.00011283,91275.0,91260.0,0.12710864]
[1767799827719,0.00011283,91275.0,91263.0,0.010966]
[1767799827919,0.00011283,91275.0,91260.0,0.13807564]
[1767799828317,0.00011283,91275.0,91254.0,0.2135]
[1767799828318,0.010965,91274.0,91257.0,0.010967]
[1767799828520,0.010965,91272.0,91254.0,0.224467]
[1767799828715,0.010966,91270.0,91255.0,0.09732849]
[1767799828918,0.010966,91270.0,91255.0,0.12710864]
[1767799829120,0.010966,91270.0,91256.0,0.09732849]
[1767799829419,0.010966,91266.0,91256.0,0.09732849]
[1767799829718,0.0932,91269.0,91245.0,0.02978015]
[1767799829910,0.0932,91269.0,91243.0,0.0932]
[1767799829911,0.00011283,91275.0,91259.0,0.02978015]
[1767799830218,8.3e-07,91275.0,91264.0,0.12710864]
[1767799830417,8.3e-07,91275.0,91265.0,0.09732849]
[1767799831018,0.0959202,91311.0,91280.0,0.010964]
[1767799831019,0.0932,91290.0,91280.0,0.010964]
[1767799831216,0.0932,91291.0,91278.0,0.09732849]
[1767799831415,0.010963,91290.0,91273.0,0.010965]
[1767799831627,0.010963,91290.0,91273.0,0.13807364]
[1767799831808,0.0932,91291.0,91278.0,0.10630356]
[1767799832010,0.0932,91291.0,91278.0,0.09533856]
[1767799832516,0.010959,91323.0,91302.0,0.010962]
[1767799832721,0.010959,91323.0,91298.0,0.09533856]
[1767799832722,0.0932,91322.0,91298.0,0.09533856]
[1767799832918,0.20376064,91322.0,91298.0,0.09533856]
[1767799833223,0.010961,91310.0,91293.0,0.010963]
[1767799833423,0.010961,91310.0,91293.0,0.09533856]
[1767799833625,0.0932,91311.0,91293.0,0.1275951]
[1767799833814,0.0932,91311.0,91295.0,0.09533856]
[1767799834011,0.0932,91311.0,91299.0,0.010962]
[1767799834212,0.50384023,91340.0,91297.0,0.09533856]
[1767799834213,0.01096,91321.0,91297.0,0.09533856]
[1767799834512,0.10416,91321.0,91298.0,0.10630056]
[1767799834735,0.01096,91317.0,91298.0,0.09533856]
[1767799835109,0.0932,91321.0,91298.0,0.08133856]
[1767799835315,0.0932,91321.0,91290.0,0.0932]
[1767799835316,0.010961,91308.0,91290.0,0.0932]
[1767799835507,0.010961,91312.0,91290.0,0.0932]
[1767799835711,0.0932,91321.0,91295.0,0.03225654]
[1767799835712,0.01096,91316.0,91295.0,0.03225654]
[1767799836512,0.0932,91321.0,91290.0,0.0932]
[1767799836513,0.01096,91320.0,91297.0,0.03225654]
[1767799837114,0.01096,91320.0,91300.0,0.09533856]
[1767799837318,0.01096,91320.0,91302.0,0.09533856]
[1767799837819,0.0932,91321.0,91303.0,0.10630056]
[1767799838017,0.01096,91314.0,91304.0,0.09533856]
[1767799838235,0.010961,91311.0,91300.0,0.0932]
[1767799838813,0.01096,91314.0,91300.0,0.0932]
[1767799839015,0.01096,91314.0,91297.0,0.09533856]
[1767799839215,0.01096,91314.0,91298.0,0.0932]
[1767799839418,0.01096,91314.0,91298.0,0.18853856]
[1767799839917,0.01096,91314.0,91298.0,0.2207951]
[1767799840329,0.01096,91317.0,91298.0,0.2207951]
[1767799840516,0.01096,91315.0,91298.0,0.2207951]
[1767799840713,0.09960164,91315.0,91286.0,0.1275951]